[Event "Titled Tuesday Blitz May 03 Early 2022"]
[White "Avazkhonov, Alikhon"]
[Black "Zainullina, Nataliya"]
[WhiteFideId "14208504"]
[BlackFideId "4145488"]
[WhiteElo "1739"]
[BlackElo "2069"]
[Result "0-1"]
[Round "09"]
[TimeControl "180+1"]
[Date "2022.05.03"]
[WhiteClock "0:00:12"]
[BlackClock "0:01:07"]

1. e4 {[%clk 0:02:54]}  c6 {[%clk 0:03:00]} 2. Nc3 {[%clk 0:02:53]}  d5 {[%clk 0:03:00]} 3. Nf3 {[%clk 0:02:54]}  dxe4 {[%clk 0:03:00]} 4. Nxe4 {[%clk 0:02:55]}  Nf6 {[%clk 0:03:00]} 5. Qe2 {[%clk 0:02:55]}  e6 {[%clk 0:02:56]} 6. d4 {[%clk 0:02:54]}  Be7 {[%clk 0:02:55]} 7. c3 {[%clk 0:02:51]}  O-O {[%clk 0:02:55]} 8. Nxf6+ {[%clk 0:02:49]}  Bxf6 {[%clk 0:02:55]} 9. Qe4 {[%clk 0:02:50]}  Qd5 {[%clk 0:02:53]} 10. Bd3 {[%clk 0:02:44]}  Qxe4+ {[%clk 0:02:53]} 11. Bxe4 {[%clk 0:02:45]}  b6 {[%clk 0:02:52]} 12. O-O {[%clk 0:02:43]}  Ba6 {[%clk 0:02:52]} 13. Re1 {[%clk 0:02:42]}  Rc8 {[%clk 0:02:52]} 14. Ne5 {[%clk 0:02:34]}  Bxe5 {[%clk 0:02:41]} 15. dxe5 {[%clk 0:02:35]}  Nd7 {[%clk 0:02:41]} 16. Bf4 {[%clk 0:02:07]}  Nc5 {[%clk 0:02:39]} 17. Rad1 {[%clk 0:01:51]}  Nxe4 {[%clk 0:02:37]} 18. Rxe4 {[%clk 0:01:52]}  Rd8 {[%clk 0:02:22]} 19. Red4 {[%clk 0:01:50]}  Rxd4 {[%clk 0:02:22]} 20. Rxd4 {[%clk 0:01:51]}  Kf8 {[%clk 0:02:22]} 21. Rd7 {[%clk 0:01:48]}  Ke8 {[%clk 0:02:20]} 22. Rc7 {[%clk 0:01:48]}  c5 {[%clk 0:02:13]} 23. h4 {[%clk 0:01:38]}  Bb5 {[%clk 0:02:08]} 24. b3 {[%clk 0:01:35]}  Bd7 {[%clk 0:02:08]} 25. c4 {[%clk 0:01:34]}  Kd8 {[%clk 0:02:08]} 26. Rb7 {[%clk 0:01:28]}  Kc8 {[%clk 0:02:09]} 27. Rxd7 {[%clk 0:01:28]}  Kxd7 {[%clk 0:02:09]} 28. g4 {[%clk 0:01:24]}  Kc6 {[%clk 0:02:08]} 29. Bg5 {[%clk 0:01:21]}  Rc8 {[%clk 0:02:07]} 30. Kf1 {[%clk 0:00:57]}  Rc7 {[%clk 0:02:06]} 31. Ke2 {[%clk 0:00:56]}  Rd7 {[%clk 0:02:07]} 32. h5 {[%clk 0:00:49]}  b5 {[%clk 0:02:05]} 33. Be3 {[%clk 0:00:40]}  a5 {[%clk 0:02:00]} 34. f4 {[%clk 0:00:33]}  a4 {[%clk 0:01:59]} 35. f5 {[%clk 0:00:12]}  Rb7 {[%clk 0:01:55]} 36. f6 {[%clk 0:00:03]}  g6 {[%clk 0:01:54]} 37. hxg6 {[%clk 0:00:02]}  hxg6 {[%clk 0:01:54]} 38. cxb5+ {[%clk 0:00:03]}  Kxb5 {[%clk 0:01:53]} 39. bxa4+ {[%clk 0:00:03]}  Kxa4 {[%clk 0:01:51]} 40. Bxc5 {[%clk 0:00:03]}  Rb2+ {[%clk 0:01:51]} 41. Ke3 {[%clk 0:00:03]}  Rxa2 {[%clk 0:01:51]} 42. Kf4 {[%clk 0:00:03]}  Rh2 {[%clk 0:01:46]} 43. Kg5 {[%clk 0:00:04]}  Kb5 {[%clk 0:01:46]} 44. Bf8 {[%clk 0:00:03]}  Rh8 {[%clk 0:01:44]} 45. Bg7 {[%clk 0:00:02]}  Rh7 {[%clk 0:01:44]} 46. Bf8 {[%clk 0:00:02]}  Kc4 {[%clk 0:01:44]} 47. Bd6 {[%clk 0:00:02]}  Kd5 {[%clk 0:01:45]} 48. Kf4 {[%clk 0:00:03]}  Rh3 {[%clk 0:01:44]} 49. Bf8 {[%clk 0:00:03]}  Rh1 {[%clk 0:01:41]} 50. Bd6 {[%clk 0:00:03]}  Rf1+ {[%clk 0:01:39]} 51. Kg5 {[%clk 0:00:03]}  Rh1 {[%clk 0:01:40]} 52. Kf4 {[%clk 0:00:04]}  Rh8 {[%clk 0:01:39]} 53. Be7 {[%clk 0:00:04]}  Rh7 {[%clk 0:01:38]} 54. Bd6 {[%clk 0:00:04]}  Kd4 {[%clk 0:01:38]} 55. Bf8 {[%clk 0:00:03]}  Rh1 {[%clk 0:01:37]} 56. Bd6 {[%clk 0:00:03]}  Rf1+ {[%clk 0:01:37]} 57. Kg5 {[%clk 0:00:04]}  Rh1 {[%clk 0:01:34]} 58. Kf4 {[%clk 0:00:03]}  Kd3 {[%clk 0:01:31]} 59. Bb8 {[%clk 0:00:02]}  Ke2 {[%clk 0:01:31]} 60. Ba7 {[%clk 0:00:02]}  Kf1 {[%clk 0:01:29]} 61. Bb6 {[%clk 0:00:01]}  Kg2 {[%clk 0:01:29]} 62. Ba7 {[%clk 0:00:02]}  Kh3 {[%clk 0:01:25]} 63. Bb6 {[%clk 0:00:01]}  Kh4 {[%clk 0:01:23]} 64. Bf2+ {[%clk 0:00:01]}  Kh3 {[%clk 0:01:22]} 65. Be3 {[%clk 0:00:01]}  Re1 {[%clk 0:01:19]} 66. Kg5 {[%clk 0:00:02]}  Rxe3 {[%clk 0:01:19]} 67. Kh6 {[%clk 0:00:03]}  Kxg4 {[%clk 0:01:17]} 68. Kg7 {[%clk 0:00:03]}  Rxe5 {[%clk 0:01:15]} 69. Kxf7 {[%clk 0:00:04]}  Rf5 {[%clk 0:01:14]} 70. Kxg6 {[%clk 0:00:05]}  e5 {[%clk 0:01:14]} 71. f7 {[%clk 0:00:06]}  e4 {[%clk 0:01:14]} 72. Kg7 {[%clk 0:00:06]}  e3 {[%clk 0:01:14]} 73. f8=Q {[%clk 0:00:07]}  Rxf8 {[%clk 0:01:14]} 74. Kxf8 {[%clk 0:00:08]}  e2 {[%clk 0:01:14]} 75. Kg7 {[%clk 0:00:08]}  e1=Q {[%clk 0:01:15]} 76. Kg6 {[%clk 0:00:09]}  Qe6+ {[%clk 0:01:15]} 77. Kg7 {[%clk 0:00:10]}  Kg5 {[%clk 0:01:13]} 78. Kh7 {[%clk 0:00:11]}  Qf7+ {[%clk 0:01:11]} 79. Kh8 {[%clk 0:00:11]}  Qe7 {[%clk 0:01:08]} 80. Kg8 {[%clk 0:00:11]}  Kh6 {[%clk 0:01:07]} 81. Kh8 {[%clk 0:00:12]}  Qh7# {[%clk 0:01:07]} 0-1


[Site "https://www.chess.com"]

[Event "Titled Tuesday Blitz May 03 Early 2022"]
[White "Babazada, Khazar"]
[Black "Skliarov, Viktor"]
[WhiteFideId "13413554"]
[BlackFideId "14106736"]
[WhiteElo "2406"]
[BlackElo "2229"]
[Result "1-0"]
[Round "09"]
[TimeControl "180+1"]
[Date "2022.05.03"]
[WhiteClock "0:00:35"]
[BlackClock "0:00:11"]

1. e4 {[%clk 0:03:00]}  c5 {[%clk 0:03:00]} 2. Nf3 {[%clk 0:02:57]}  Nc6 {[%clk 0:03:00]} 3. d4 {[%clk 0:02:52]}  cxd4 {[%clk 0:03:01]} 4. Nxd4 {[%clk 0:02:52]}  Nf6 {[%clk 0:03:02]} 5. Nc3 {[%clk 0:02:51]}  e5 {[%clk 0:03:02]} 6. Ndb5 {[%clk 0:02:50]}  d6 {[%clk 0:03:02]} 7. Bg5 {[%clk 0:02:47]}  a6 {[%clk 0:03:03]} 8. Na3 {[%clk 0:02:46]}  b5 {[%clk 0:03:03]} 9. Nd5 {[%clk 0:02:40]}  Be7 {[%clk 0:03:03]} 10. Bxf6 {[%clk 0:02:39]}  Bxf6 {[%clk 0:03:03]} 11. c3 {[%clk 0:02:40]}  O-O {[%clk 0:03:02]} 12. Nc2 {[%clk 0:02:39]}  Rb8 {[%clk 0:03:02]} 13. h4 {[%clk 0:02:37]}  Be6 {[%clk 0:02:56]} 14. Nce3 {[%clk 0:02:28]}  b4 {[%clk 0:02:31]} 15. Bd3 {[%clk 0:02:18]}  bxc3 {[%clk 0:02:25]} 16. bxc3 {[%clk 0:02:19]}  a5 {[%clk 0:02:13]} 17. g3 {[%clk 0:02:14]}  g6 {[%clk 0:01:35]} 18. Kf1 {[%clk 0:02:09]}  Bxd5 {[%clk 0:01:24]} 19. Nxd5 {[%clk 0:02:08]}  Bg7 {[%clk 0:01:25]} 20. h5 {[%clk 0:02:06]}  Ne7 {[%clk 0:01:10]} 21. Bc4 {[%clk 0:01:54]}  Nxd5 {[%clk 0:01:06]} 22. Bxd5 {[%clk 0:01:55]}  Qf6 {[%clk 0:00:57]} 23. Rb1 {[%clk 0:01:51]}  Rxb1 {[%clk 0:00:50]} 24. Qxb1 {[%clk 0:01:52]}  Rc8 {[%clk 0:00:50]} 25. Qd3 {[%clk 0:01:35]}  Rb8 {[%clk 0:00:47]} 26. hxg6 {[%clk 0:00:59]}  hxg6 {[%clk 0:00:46]} 27. Qd2 {[%clk 0:00:59]}  Rb1+ {[%clk 0:00:43]} 28. Kg2 {[%clk 0:00:59]}  Rxh1 {[%clk 0:00:42]} 29. Kxh1 {[%clk 0:01:00]}  Qf3+ {[%clk 0:00:39]} 30. Kg1 {[%clk 0:00:58]}  Bf6 {[%clk 0:00:35]} 31. Qb2 {[%clk 0:00:56]}  Kg7 {[%clk 0:00:27]} 32. Qb7 {[%clk 0:00:54]}  Bg5 {[%clk 0:00:26]} 33. Qc7 {[%clk 0:00:53]}  Bd2 {[%clk 0:00:22]} 34. Qxa5 {[%clk 0:00:50]}  Bxc3 {[%clk 0:00:22]} 35. Qa3 {[%clk 0:00:48]}  Qd1+ {[%clk 0:00:16]} 36. Kg2 {[%clk 0:00:48]}  Qd2 {[%clk 0:00:11]} 37. Qa7 {[%clk 0:00:45]}  Bd4 {[%clk 0:00:10]} 38. Qxf7+ {[%clk 0:00:44]}  Kh6 {[%clk 0:00:11]} 39. Qf8+ {[%clk 0:00:43]}  Kg5 {[%clk 0:00:11]} 40. Qd8+ {[%clk 0:00:34]}  Kh6 {[%clk 0:00:11]} 41. Qh8+ {[%clk 0:00:34]}  Kg5 {[%clk 0:00:11]} 42. Qh4# {[%clk 0:00:35]} 1-0


[Site "https://www.chess.com"]

[Event "Titled Tuesday Blitz May 03 Early 2022"]
[White "Bacrot, Etienne"]
[Black "Mirzoev, Azer"]
[WhiteFideId "605506"]
[BlackFideId "13400304"]
[WhiteElo "2673"]
[BlackElo "2525"]
[Result "1-0"]
[Round "09"]
[TimeControl "180+1"]
[Date "2022.05.03"]
[WhiteClock "0:00:05"]
[BlackClock "0:00:01"]

1. d4 {[%clk 0:03:00]}  d5 {[%clk 0:02:59]} 2. Nf3 {[%clk 0:02:59]}  c6 {[%clk 0:02:59]} 3. Bf4 {[%clk 0:02:58]}  Qb6 {[%clk 0:02:56]} 4. Qc1 {[%clk 0:02:55]}  Nf6 {[%clk 0:02:56]} 5. e3 {[%clk 0:02:55]}  Bg4 {[%clk 0:02:53]} 6. Ne5 {[%clk 0:02:54]}  Bh5 {[%clk 0:02:53]} 7. c4 {[%clk 0:02:51]}  Nbd7 {[%clk 0:02:47]} 8. Nxd7 {[%clk 0:02:49]}  Nxd7 {[%clk 0:02:46]} 9. Nc3 {[%clk 0:02:47]}  e6 {[%clk 0:02:44]} 10. c5 {[%clk 0:02:42]}  Qd8 {[%clk 0:02:38]} 11. b4 {[%clk 0:02:41]}  Be7 {[%clk 0:02:36]} 12. Bd3 {[%clk 0:02:40]}  Bg6 {[%clk 0:02:32]} 13. Bxg6 {[%clk 0:02:38]}  hxg6 {[%clk 0:02:30]} 14. O-O {[%clk 0:02:37]}  Bg5 {[%clk 0:02:23]} 15. Bg3 {[%clk 0:02:33]}  Bh4 {[%clk 0:02:22]} 16. b5 {[%clk 0:02:20]}  Bxg3 {[%clk 0:02:21]} 17. hxg3 {[%clk 0:02:20]}  Qg5 {[%clk 0:02:16]} 18. Rb1 {[%clk 0:02:13]}  Nf6 {[%clk 0:02:07]} 19. e4 {[%clk 0:01:52]}  Qh5 {[%clk 0:01:45]} 20. f3 {[%clk 0:01:42]}  dxe4 {[%clk 0:00:52]} 21. Nxe4 {[%clk 0:01:36]}  Nxe4 {[%clk 0:00:27]} 22. fxe4 {[%clk 0:01:37]}  O-O {[%clk 0:00:26]} 23. Qe3 {[%clk 0:01:18]}  Rad8 {[%clk 0:00:24]} 24. bxc6 {[%clk 0:01:14]}  bxc6 {[%clk 0:00:24]} 25. Rb7 {[%clk 0:01:13]}  e5 {[%clk 0:00:24]} 26. d5 {[%clk 0:01:05]}  cxd5 {[%clk 0:00:23]} 27. exd5 {[%clk 0:01:05]}  Rxd5 {[%clk 0:00:23]} 28. c6 {[%clk 0:01:06]}  Rd1 {[%clk 0:00:18]} 29. Qf3 {[%clk 0:00:58]}  Rxf1+ {[%clk 0:00:17]} 30. Kxf1 {[%clk 0:00:56]}  Qh1+ {[%clk 0:00:17]} 31. Ke2 {[%clk 0:00:56]}  Qc1 {[%clk 0:00:16]} 32. Qd5 {[%clk 0:00:47]}  Qc2+ {[%clk 0:00:16]} 33. Kf1 {[%clk 0:00:43]}  Qc1+ {[%clk 0:00:16]} 34. Kf2 {[%clk 0:00:43]}  Qc2+ {[%clk 0:00:16]} 35. Kg1 {[%clk 0:00:43]}  Qc1+ {[%clk 0:00:16]} 36. Kh2 {[%clk 0:00:44]}  Qh6+ {[%clk 0:00:17]} 37. Kg1 {[%clk 0:00:44]}  Qc1+ {[%clk 0:00:17]} 38. Kf2 {[%clk 0:00:44]}  Qc2+ {[%clk 0:00:17]} 39. Ke3 {[%clk 0:00:45]}  Qc3+ {[%clk 0:00:17]} 40. Ke2 {[%clk 0:00:45]}  Qc2+ {[%clk 0:00:17]} 41. Kf3 {[%clk 0:00:42]}  Qc3+ {[%clk 0:00:17]} 42. Kg4 {[%clk 0:00:41]}  Kh7 {[%clk 0:00:15]} 43. c7 {[%clk 0:00:19]}  f5+ {[%clk 0:00:12]} 44. Kh3 {[%clk 0:00:18]}  Qc1 {[%clk 0:00:11]} 45. Kh2 {[%clk 0:00:18]}  Qh6+ {[%clk 0:00:10]} 46. Kg1 {[%clk 0:00:18]}  Qc1+ {[%clk 0:00:10]} 47. Kf2 {[%clk 0:00:19]}  Qc2+ {[%clk 0:00:10]} 48. Ke1 {[%clk 0:00:19]}  Qc1+ {[%clk 0:00:11]} 49. Ke2 {[%clk 0:00:20]}  Qc2+ {[%clk 0:00:11]} 50. Qd2 {[%clk 0:00:18]}  Qc6 {[%clk 0:00:10]} 51. Rb8 {[%clk 0:00:16]}  Qc4+ {[%clk 0:00:09]} 52. Ke1 {[%clk 0:00:15]}  Qxc7 {[%clk 0:00:05]} 53. Rxf8 {[%clk 0:00:15]}  e4 {[%clk 0:00:05]} 54. Rd8 {[%clk 0:00:05]}  Qc5 {[%clk 0:00:04]} 55. Kf1 {[%clk 0:00:05]}  Qc4+ {[%clk 0:00:03]} 56. Qe2 {[%clk 0:00:05]}  Qc1+ {[%clk 0:00:03]} 57. Rd1 {[%clk 0:00:05]}  Qc5 {[%clk 0:00:03]} 58. Qf2 {[%clk 0:00:06]}  Qc4+ {[%clk 0:00:03]} 59. Kg1 {[%clk 0:00:06]}  Qc3 {[%clk 0:00:02]} 60. Re1 {[%clk 0:00:06]}  a5 {[%clk 0:00:02]} 61. Qe3 {[%clk 0:00:06]}  Qc4 {[%clk 0:00:02]} 62. a3 {[%clk 0:00:07]}  a4 {[%clk 0:00:02]} 63. Rf1 {[%clk 0:00:07]}  Qc2 {[%clk 0:00:02]} 64. g4 {[%clk 0:00:07]}  Qb2 {[%clk 0:00:01]} 65. gxf5 {[%clk 0:00:07]}  gxf5 {[%clk 0:00:02]} 66. Rxf5 {[%clk 0:00:05]}  Qa1+ {[%clk 0:00:01]} 67. Kh2 {[%clk 0:00:05]} 1-0


[Site "https://www.chess.com"]

[Event "Titled Tuesday Blitz May 03 Early 2022"]
[White "Bartel, Michal"]
[Black "Nagy, Gabor"]
[WhiteFideId "1119257"]
[BlackFideId "737119"]
[WhiteElo "2211"]
[BlackElo "2534"]
[Result "1-0"]
[Round "09"]
[TimeControl "180+1"]
[Date "2022.05.03"]
[WhiteClock "0:02:03"]
[BlackClock "0:01:07"]

1. e4 {[%clk 0:03:00]}  g6 {[%clk 0:02:20]} 2. g3 {[%clk 0:03:00]}  Bg7 {[%clk 0:02:19]} 3. Bg2 {[%clk 0:03:01]}  c5 {[%clk 0:02:17]} 4. Ne2 {[%clk 0:03:01]}  Nc6 {[%clk 0:02:18]} 5. c3 {[%clk 0:03:01]}  d6 {[%clk 0:02:18]} 6. d4 {[%clk 0:03:01]}  cxd4 {[%clk 0:02:19]} 7. cxd4 {[%clk 0:03:02]}  Nf6 {[%clk 0:02:19]} 8. Nbc3 {[%clk 0:03:03]}  O-O {[%clk 0:02:20]} 9. O-O {[%clk 0:03:03]}  Bd7 {[%clk 0:02:20]} 10. h3 {[%clk 0:03:03]}  Rc8 {[%clk 0:02:21]} 11. Be3 {[%clk 0:03:03]}  a6 {[%clk 0:02:21]} 12. Qd2 {[%clk 0:03:03]}  b5 {[%clk 0:02:21]} 13. b3 {[%clk 0:03:04]}  e5 {[%clk 0:02:19]} 14. Rac1 {[%clk 0:02:59]}  exd4 {[%clk 0:02:17]} 15. Nxd4 {[%clk 0:03:00]}  Re8 {[%clk 0:02:18]} 16. g4 {[%clk 0:02:54]}  b4 {[%clk 0:02:16]} 17. Nce2 {[%clk 0:02:46]}  Nxe4 {[%clk 0:02:06]} 18. Qd3 {[%clk 0:02:38]}  Nc5 {[%clk 0:01:53]} 19. Qd2 {[%clk 0:02:29]}  Ne5 {[%clk 0:01:46]} 20. Nf4 {[%clk 0:02:19]}  a5 {[%clk 0:01:38]} 21. Rfd1 {[%clk 0:02:19]}  Qh4 {[%clk 0:01:35]} 22. Nd5 {[%clk 0:02:07]}  Ned3 {[%clk 0:01:26]} 23. Bg5 {[%clk 0:02:04]}  Qxf2+ {[%clk 0:01:06]} 24. Qxf2 {[%clk 0:02:04]}  Nxf2 {[%clk 0:01:07]} 25. Kxf2 {[%clk 0:02:03]}  Nd3+ {[%clk 0:01:07]} 26. Rxd3 {[%clk 0:02:03]}  Rxc1 {[%clk 0:01:07]} 27. Bxc1 {[%clk 0:02:03]} 1-0


[Site "https://www.chess.com"]

[Event "Titled Tuesday Blitz May 03 Early 2022"]
[White "Bintang, Rasyid A. Hidayat"]
[Black "Souleidis, Georgios"]
[WhiteFideId "7105355"]
[BlackFideId "4206827"]
[WhiteElo "2428"]
[BlackElo "2401"]
[Result "0-1"]
[Round "09"]
[TimeControl "180+1"]
[Date "2022.05.03"]
[WhiteClock "0:00:18"]
[BlackClock "0:00:14"]

1. d4 {[%clk 0:03:00]}  Nf6 {[%clk 0:02:58]} 2. Bf4 {[%clk 0:03:00]}  d5 {[%clk 0:02:57]} 3. e3 {[%clk 0:02:59]}  e6 {[%clk 0:02:58]} 4. Nd2 {[%clk 0:02:59]}  Bd6 {[%clk 0:02:58]} 5. Bg3 {[%clk 0:02:59]}  O-O {[%clk 0:02:57]} 6. Ngf3 {[%clk 0:02:58]}  b6 {[%clk 0:02:58]} 7. Bd3 {[%clk 0:02:56]}  c5 {[%clk 0:02:58]} 8. c3 {[%clk 0:02:56]}  Ba6 {[%clk 0:02:56]} 9. Bxa6 {[%clk 0:02:54]}  Nxa6 {[%clk 0:02:57]} 10. Qe2 {[%clk 0:02:55]}  Nb8 {[%clk 0:02:57]} 11. Ne5 {[%clk 0:02:53]}  Qc7 {[%clk 0:02:41]} 12. f4 {[%clk 0:02:50]}  Nc6 {[%clk 0:02:37]} 13. Bh4 {[%clk 0:02:48]}  Ne4 {[%clk 0:02:12]} 14. Nxe4 {[%clk 0:02:40]}  dxe4 {[%clk 0:02:13]} 15. O-O {[%clk 0:02:40]}  f6 {[%clk 0:02:10]} 16. Nc4 {[%clk 0:02:37]}  Be7 {[%clk 0:02:05]} 17. a4 {[%clk 0:02:32]}  a6 {[%clk 0:01:55]} 18. Nd2 {[%clk 0:02:25]}  f5 {[%clk 0:01:52]} 19. Bxe7 {[%clk 0:02:24]}  Nxe7 {[%clk 0:01:52]} 20. Nc4 {[%clk 0:02:22]}  cxd4 {[%clk 0:01:51]} 21. cxd4 {[%clk 0:02:22]}  Rac8 {[%clk 0:01:32]} 22. b3 {[%clk 0:02:03]}  Nd5 {[%clk 0:01:31]} 23. Rfc1 {[%clk 0:01:52]}  b5 {[%clk 0:01:28]} 24. axb5 {[%clk 0:01:45]}  axb5 {[%clk 0:01:28]} 25. Ne5 {[%clk 0:01:36]}  Qxc1+ {[%clk 0:01:24]} 26. Rxc1 {[%clk 0:01:37]}  Rxc1+ {[%clk 0:01:24]} 27. Kf2 {[%clk 0:01:37]}  Rb8 {[%clk 0:00:32]} 28. Nd7 {[%clk 0:01:30]}  Ra8 {[%clk 0:00:22]} 29. Qxb5 {[%clk 0:01:24]}  Rc2+ {[%clk 0:00:22]} 30. Kg3 {[%clk 0:01:20]}  Nxe3 {[%clk 0:00:22]} 31. Qb7 {[%clk 0:01:10]}  Raa2 {[%clk 0:00:15]} 32. Qb8+ {[%clk 0:01:05]}  Kf7 {[%clk 0:00:15]} 33. Qf8+ {[%clk 0:01:03]}  Kg6 {[%clk 0:00:16]} 34. Ne5+ {[%clk 0:01:02]}  Kh6 {[%clk 0:00:14]} 35. Nf7+ {[%clk 0:00:59]}  Kg6 {[%clk 0:00:14]} 36. Ne5+ {[%clk 0:00:54]}  Kh6 {[%clk 0:00:15]} 37. Nf7+ {[%clk 0:00:45]}  Kh5 {[%clk 0:00:12]} 38. Qe7 {[%clk 0:00:23]}  Rxg2+ {[%clk 0:00:12]} 39. Kh3 {[%clk 0:00:23]}  Rxh2+ {[%clk 0:00:13]} 40. Kg3 {[%clk 0:00:18]}  Rag2# {[%clk 0:00:14]} 0-1


[Site "https://www.chess.com"]

[Event "Titled Tuesday Blitz May 03 Early 2022"]
[White "Bluebaum, Matthias"]
[Black "Fedoseev, Vladimir"]
[WhiteFideId "24651516"]
[BlackFideId "24130737"]
[WhiteElo "2550"]
[BlackElo "2726"]
[Result "1/2-1/2"]
[Round "09"]
[TimeControl "180+1"]
[Date "2022.05.03"]
[WhiteClock "0:00:12"]
[BlackClock "0:00:08"]

1. d4 {[%clk 0:03:00]}  Nf6 {[%clk 0:02:55]} 2. c4 {[%clk 0:03:01]}  e6 {[%clk 0:02:56]} 3. Nc3 {[%clk 0:03:01]}  d5 {[%clk 0:02:51]} 4. cxd5 {[%clk 0:03:02]}  exd5 {[%clk 0:02:50]} 5. Bg5 {[%clk 0:03:02]}  c6 {[%clk 0:02:49]} 6. e3 {[%clk 0:03:02]}  Bd6 {[%clk 0:02:48]} 7. Bd3 {[%clk 0:03:02]}  Nbd7 {[%clk 0:02:48]} 8. Nf3 {[%clk 0:02:58]}  Nf8 {[%clk 0:02:47]} 9. O-O {[%clk 0:02:48]}  Ng6 {[%clk 0:02:45]} 10. e4 {[%clk 0:02:45]}  dxe4 {[%clk 0:02:44]} 11. Bxf6 {[%clk 0:02:30]}  gxf6 {[%clk 0:02:35]} 12. Bxe4 {[%clk 0:02:28]}  O-O {[%clk 0:02:34]} 13. Re1 {[%clk 0:02:25]}  f5 {[%clk 0:02:25]} 14. Bc2 {[%clk 0:02:24]}  Qf6 {[%clk 0:02:23]} 15. g3 {[%clk 0:02:18]}  Bd7 {[%clk 0:02:12]} 16. Qd2 {[%clk 0:02:14]}  Qg7 {[%clk 0:01:56]} 17. Kh1 {[%clk 0:01:45]}  Rad8 {[%clk 0:01:54]} 18. Qg5 {[%clk 0:01:41]}  f4 {[%clk 0:01:30]} 19. Bf5 {[%clk 0:01:39]}  fxg3 {[%clk 0:01:12]} 20. hxg3 {[%clk 0:01:39]}  Ne7 {[%clk 0:00:58]} 21. Qxg7+ {[%clk 0:01:32]}  Kxg7 {[%clk 0:00:57]} 22. Bxd7 {[%clk 0:01:24]}  Rxd7 {[%clk 0:00:58]} 23. Ne4 {[%clk 0:01:23]}  Ng6 {[%clk 0:00:53]} 24. Rad1 {[%clk 0:01:15]}  Rfd8 {[%clk 0:00:50]} 25. Re2 {[%clk 0:00:59]}  Be7 {[%clk 0:00:49]} 26. Red2 {[%clk 0:00:57]}  h6 {[%clk 0:00:46]} 27. Kg2 {[%clk 0:00:57]}  f5 {[%clk 0:00:42]} 28. Nc3 {[%clk 0:00:55]}  Bf6 {[%clk 0:00:42]} 29. Na4 {[%clk 0:00:46]}  b6 {[%clk 0:00:39]} 30. b4 {[%clk 0:00:41]}  h5 {[%clk 0:00:32]} 31. Rc1 {[%clk 0:00:39]}  Ne7 {[%clk 0:00:30]} 32. Nc3 {[%clk 0:00:39]}  c5 {[%clk 0:00:20]} 33. bxc5 {[%clk 0:00:39]}  bxc5 {[%clk 0:00:21]} 34. Ne2 {[%clk 0:00:40]}  cxd4 {[%clk 0:00:13]} 35. Nf4 {[%clk 0:00:40]}  Kf7 {[%clk 0:00:14]} 36. Nxh5 {[%clk 0:00:40]}  Rd6 {[%clk 0:00:11]} 37. Nxf6 {[%clk 0:00:38]}  Kxf6 {[%clk 0:00:12]} 38. Rc5 {[%clk 0:00:38]}  d3 {[%clk 0:00:10]} 39. Rc3 {[%clk 0:00:30]}  Nd5 {[%clk 0:00:10]} 40. Rb3 {[%clk 0:00:29]}  Nb6 {[%clk 0:00:10]} 41. Ne1 {[%clk 0:00:28]}  Re6 {[%clk 0:00:10]} 42. Rdxd3 {[%clk 0:00:27]}  Rde8 {[%clk 0:00:10]} 43. Nf3 {[%clk 0:00:26]}  Re2 {[%clk 0:00:10]} 44. Ra3 {[%clk 0:00:23]}  R8e7 {[%clk 0:00:08]} 45. Nd4 {[%clk 0:00:23]}  R2e4 {[%clk 0:00:06]} 46. Nb5 {[%clk 0:00:19]}  Ra4 {[%clk 0:00:02]} 47. Rxa4 {[%clk 0:00:18]}  Nxa4 {[%clk 0:00:03]} 48. Ra3 {[%clk 0:00:19]}  Nc5 {[%clk 0:00:04]} 49. Rxa7 {[%clk 0:00:18]}  Re2 {[%clk 0:00:04]} 50. Nd4 {[%clk 0:00:17]}  Rd2 {[%clk 0:00:04]} 51. Ra5 {[%clk 0:00:18]}  Ne4 {[%clk 0:00:03]} 52. Rxf5+ {[%clk 0:00:16]}  Kg6 {[%clk 0:00:04]} 53. Rf4 {[%clk 0:00:08]}  Rxd4 {[%clk 0:00:03]} 54. Kf3 {[%clk 0:00:09]}  Ng5+ {[%clk 0:00:02]} 55. Ke3 {[%clk 0:00:09]}  Rd6 {[%clk 0:00:03]} 56. Rb4 {[%clk 0:00:07]}  Ra6 {[%clk 0:00:04]} 57. a4 {[%clk 0:00:07]}  Ne6 {[%clk 0:00:05]} 58. f4 {[%clk 0:00:07]}  Nc5 {[%clk 0:00:05]} 59. Kf3 {[%clk 0:00:07]}  Nxa4 {[%clk 0:00:06]} 60. g4 {[%clk 0:00:07]}  Nc5 {[%clk 0:00:06]} 61. Kg3 {[%clk 0:00:06]}  Nd7 {[%clk 0:00:06]} 62. Rd4 {[%clk 0:00:06]}  Nf6 {[%clk 0:00:06]} 63. Rd3 {[%clk 0:00:06]}  Ra4 {[%clk 0:00:06]} 64. Rb3 {[%clk 0:00:06]}  Rc4 {[%clk 0:00:05]} 65. Rd3 {[%clk 0:00:05]}  Kf7 {[%clk 0:00:05]} 66. g5 {[%clk 0:00:05]}  Nh5+ {[%clk 0:00:05]} 67. Kg4 {[%clk 0:00:05]}  Nxf4 {[%clk 0:00:05]} 68. Rf3 {[%clk 0:00:06]}  Kg6 {[%clk 0:00:06]} 69. Rxf4 {[%clk 0:00:06]}  Rxf4+ {[%clk 0:00:06]} 70. Kxf4 {[%clk 0:00:07]}  Kg7 {[%clk 0:00:06]} 71. Kf5 {[%clk 0:00:08]}  Kf7 {[%clk 0:00:07]} 72. g6+ {[%clk 0:00:09]}  Kg7 {[%clk 0:00:07]} 73. Kg5 {[%clk 0:00:10]}  Kg8 {[%clk 0:00:08]} 74. Kf5 {[%clk 0:00:11]}  Kg7 {[%clk 0:00:08]} 75. Kg5 {[%clk 0:00:11]}  Kg8 {[%clk 0:00:08]} 76. Kf6 {[%clk 0:00:11]}  Kf8 {[%clk 0:00:08]} 77. g7+ {[%clk 0:00:11]}  Kg8 {[%clk 0:00:08]} 78. Kg6 {[%clk 0:00:12]} 1/2-1/2


[Site "https://www.chess.com"]

[Event "Titled Tuesday Blitz May 03 Early 2022"]
[White "Bocharov, Dmitry"]
[Black "Eynullayev, Atilla"]
[WhiteFideId "4138716"]
[BlackFideId "13413570"]
[WhiteElo "2541"]
[BlackElo "1936"]
[Result "1-0"]
[Round "09"]
[TimeControl "180+1"]
[Date "2022.05.03"]
[WhiteClock "0:02:15"]
[BlackClock "0:01:15"]

1. d4 {[%clk 0:02:59]}  Nf6 {[%clk 0:02:48]} 2. c4 {[%clk 0:02:59]}  e6 {[%clk 0:02:47]} 3. g3 {[%clk 0:02:59]}  d5 {[%clk 0:02:46]} 4. Nf3 {[%clk 0:02:59]}  Be7 {[%clk 0:02:47]} 5. Bg2 {[%clk 0:02:59]}  O-O {[%clk 0:02:47]} 6. O-O {[%clk 0:02:59]}  dxc4 {[%clk 0:02:48]} 7. Ne5 {[%clk 0:02:55]}  Nc6 {[%clk 0:02:48]} 8. Bxc6 {[%clk 0:02:56]}  bxc6 {[%clk 0:02:48]} 9. Nxc6 {[%clk 0:02:56]}  Qe8 {[%clk 0:02:48]} 10. Nxe7+ {[%clk 0:02:56]}  Qxe7 {[%clk 0:02:49]} 11. Nc3 {[%clk 0:02:57]}  c5 {[%clk 0:02:46]} 12. dxc5 {[%clk 0:02:57]}  Qxc5 {[%clk 0:02:46]} 13. Be3 {[%clk 0:02:58]}  Qc7 {[%clk 0:02:46]} 14. Qa4 {[%clk 0:02:55]}  Bb7 {[%clk 0:02:44]} 15. f3 {[%clk 0:02:52]}  Qc6 {[%clk 0:02:41]} 16. Qxc6 {[%clk 0:02:51]}  Bxc6 {[%clk 0:02:41]} 17. Bd4 {[%clk 0:02:52]}  Nd7 {[%clk 0:02:36]} 18. Rfd1 {[%clk 0:02:48]}  f6 {[%clk 0:02:29]} 19. Rd2 {[%clk 0:02:42]}  Kf7 {[%clk 0:02:30]} 20. Rad1 {[%clk 0:02:42]}  Ke7 {[%clk 0:02:30]} 21. Kf2 {[%clk 0:02:41]}  Rfb8 {[%clk 0:02:28]} 22. g4 {[%clk 0:02:38]}  Rb7 {[%clk 0:02:24]} 23. h4 {[%clk 0:02:38]}  Rab8 {[%clk 0:02:24]} 24. g5 {[%clk 0:02:38]}  e5 {[%clk 0:02:21]} 25. Be3 {[%clk 0:02:34]}  Rxb2 {[%clk 0:02:16]} 26. Bxa7 {[%clk 0:02:33]}  Rxd2 {[%clk 0:02:06]} 27. Rxd2 {[%clk 0:02:34]}  Ra8 {[%clk 0:02:07]} 28. Be3 {[%clk 0:02:30]}  Ra3 {[%clk 0:02:07]} 29. Rc2 {[%clk 0:02:30]}  Ke6 {[%clk 0:02:01]} 30. Bc1 {[%clk 0:02:17]}  Ra4 {[%clk 0:01:15]} 31. Nxa4 {[%clk 0:02:15]} 1-0


[Site "https://www.chess.com"]